Cogmind - Beta 13 *** ADVENTURER MODE // 2024.05.21 @ 10:22:58 Player: Blade Result: Destroyed by RY-USZ(z) with Zionite Laser-S Performance ------------- Evolutions (1) 500 Regions Visited (6) 1200 Robots Destroyed (31) 155 Value Destroyed (813) 813 Prototype IDs (0) 0 Alien Tech Used (0) 0 Bonus (650) 650 TOTAL SCORE: 3318 Bonus ------- Follower Combat Kills 50 Met Imprinter 300 Was Imprinted 300 Cogmind --------- Core Integrity 0/400 Matter 199/300 Energy 100/100 System Corruption 0% Temperature Cool (9) Movement Treading (240) Ox1 Location -7/Deep Caves Parts ------- > --- POWER (1) -------- (None) > --- PROPULSION (2) --- Light Treads > --- UTILITY (4) ------ Large Storage Unit Advanced Targeting Computer Core Shielding > --- WEAPON (2) ------- (None) > --- INVENTORY (15) --- Improved Ion Engine Light Treads Small Storage Unit High-capacity Storage Unit High-capacity Matter Pod (200) Surveybot 24 Scanner Light Armor Plating Light Armor Plating Light Armor Plating Makeshift Hacking Suite Authchip [Propulsion] Authchip [Weapon] Peak State ------------ > --- POWER ------------ Improved Ion Engine > --- PROPULSION ------- Light Treads Light Treads > --- UTILITY ---------- Large Storage Unit Surveybot 24 Scanner Surveybot 24 Chip Advanced Targeting Computer > --- WEAPON ----------- Heavy Assault Rifle Mini Grenade Launcher > --- INVENTORY -------- Improved Ion Engine Light Treads Small Storage Unit High-capacity Storage Unit High-capacity Matter Pod Core Shielding Light Armor Plating Light Armor Plating Light Armor Plating Medium Armor Plating Hardened Medium Armor Plating Makeshift Hacking Suite Authchip [Propulsion] Authchip [Weapon] [Rating: 30] Favorites ----------- Power Improved Ion Engine Engine Improved Ion Engine Propulsion Light Treads Treads Light Treads Leg Aluminum Leg Utility Large Storage Unit Device Thermal Generator Storage Large Storage Unit Processor Improved Targeting Computer Protection Hardened Medium Armor Plating Weapon Heavy Assault Rifle Ballistic Gun Heavy Assault Rifle Launcher Mini Grenade Launcher Piercing Weapon CR-A16's Pointy Stick Build | -11 -10 -10 -9 -9 -7 -7 ------- Run | Yrd Mat Min Mat Min Zio Dee Slots Evolved 2 | . . . 2 . . . Power . | . . . . . . . Propulsion . | . . . . . . . Utility 2 | . . . 2 . . . Weapon . | . . . . . . . Parts Attached 33 | . 8 3 10 1 5 6 Power 3 | . 1 1 . . 1 . Engine 3 | . 1 1 . . 1 . Core . | . . . . . . . Reactor . | . . . . . . . Propulsion 5 | . 2 . 3 . . . Treads 5 | . 2 . 3 . . . Leg . | . . . . . . . Wheel . | . . . . . . . Hover . | . . . . . . . Flight . | . . . . . . . Utility 18 | . 3 2 6 . 2 5 Device 4 | . 1 . 2 . . 1 Storage 5 | . 1 2 2 . . . Processor 4 | . 1 . 1 . 1 1 Hackware . | . . . . . . . Protection 5 | . . . 1 . 1 3 Artifact . | . . . . . . . Weapon 7 | . 2 . 1 1 2 1 Energy Gun . | . . . . . . . Energy Cannon . | . . . . . . . Ballistic Gun 4 | . 2 . 1 . 1 . Ballistic Cannon . | . . . . . . . Launcher 2 | . . . . 1 . 1 Special Weapon . | . . . . . . . Impact Weapon . | . . . . . . . Slashing Weapon . | . . . . . . . Piercing Weapon 1 | . . . . . 1 . Special Melee Weapon . | . . . . . . . Unidentified Prototypes . | . . . . . . . Parts Lost 9 | . . . 3 . . 6 Power 1 | . . . . . . 1 Propulsion 2 | . . . 1 . . 1 Utility 3 | . . . 1 . . 2 Weapon 3 | . . . 1 . . 2 Highest Loss Streak 6 | . . . 2 . . 6 To Critical Strikes . | . . . . . . . Average Slot Usage (%) 92 | . 99 100 98 100 86 86 Engine 11 | . 14 14 11 11 11 9 Treads 22 | . 22 28 21 22 22 21 Device 8 | . 4 . 14 11 11 9 Storage 11 | . 14 14 11 11 11 11 Processor 12 | . 9 14 15 11 11 15 Protection 6 | . . . 2 11 11 7 Ballistic Gun 14 | . 28 28 21 11 6 10 Launcher 1 | . . . . 11 2 . Naked Turns . | . . . . . . . Heaviest Build 54 | 10 33 33 54 41 48 45 Greatest Support 40 | 20 40 40 40 40 40 40 Greatest Overweight (x) 2 | . . . 2 1 1 1 Average Overweight (x) . | . . . . 1 . . Largest Inventory Capacity 20 | 8 15 15 20 15 15 15 Average Capacity 14 | 8 10 14 15 15 15 15 Most Carried 15 | 6 8 10 11 12 15 15 Average Carried 11 | 6 7 8 8 11 14 14 Final Capacity 15 | 8 15 15 15 15 15 15 Final Carried 14 | 6 8 8 11 12 14 12 Class Distribution -------------------- 83% | Mutant 16% | Scavenger-Mutant Dominant Class ---------------- Mutant | -10/Materials Mutant | -10/Mines Mutant | -9/Materials Scavenger-Mutant | -9/Mines Mutant | -7/Zion Mutant | -7/Deep Caves Resources | -11 -10 -10 -9 -9 -7 -7 ----------- Run | Yrd Mat Min Mat Min Zio Dee Matter Collected 1178 | 200 78 478 361 . 61 . Remotely . | . . . . . . . Salvage Created 1078 | . 138 199 659 55 . 27 Parts 67 | . 13 8 45 1 . . Haulers Intercepted . | . . . . . . . Recyclers Shooed . | . . . . . . . Parts Field Recycled . | . . . . . . . Retrieved Matter . | . . . . . . . Parts Self-Destructed . | . . . . . . . Prevented . | . . . . . . . Kills | -11 -10 -10 -9 -9 -7 -7 ------- Run | Yrd Mat Min Mat Min Zio Dee Combat Hostiles Destroyed 33 | . 2 12 17 2 . . Guns 31 | . 2 12 17 . . . AOE 2 | . . . . 2 . . Classes Destroyed 7 | . 2 2 3 . . . Operator 2 | . . . 2 . . . Watcher 4 | . 2 . 2 . . . Swarmer 10 | . . 3 7 . . . Grunt 9 | . 2 1 5 1 . . Brawler 2 | . . . 1 1 . . Sentry 4 | . . . 4 . . . Assembled 8 | . . 8 . . . . Best Kill Streak 4 | . 1 3 4 2 . . Combat Bots Only 4 | . 1 3 4 2 . . Max Kills in Single Turn 2 | . 1 2 1 2 . . Gunslinging 1 | . . 1 . . . . Exploded 2 | . . . . 2 . . Melee . | . . . . . . . Uniques/NPCs Destroyed . | . . . . . . . Combat | -11 -10 -10 -9 -9 -7 -7 -------- Run | Yrd Mat Min Mat Min Zio Dee Hostile Shots Fired 211 | . 11 37 95 2 . 66 Missed 68 | . 2 11 28 1 . 26 Damage Taken 2189 | . 117 321 746 9 . 996 Core 526 | . 40 83 158 . . 245 Absorbed by Shields . | . . . . . . . Redirected to Shielding 13 | . . . . . . 13 Ignored by Resistances 610 | . 34 94 217 3 . 262 Regen/Repaired (Parts) 224 | . . . . . 224 . Core Remaining (%) 75 | 100 . 50 . . . . Volleys Fired 99 | . 12 26 46 2 . 13 Largest 2 | . 2 2 2 2 . 1 Hottest 53 | . 46 46 46 53 . 23 Shots Fired 183 | . 24 51 91 4 . 13 Gun 181 | . 24 51 91 2 . 13 Cannon . | . . . . . . . Launcher 2 | . . . . 2 . . Special . | . . . . . . . Kinetic 181 | . 24 51 91 2 . 13 Thermal . | . . . . . . . Explosive 2 | . . . . 2 . . Electromagnetic . | . . . . . . . Robot Hit Streak 23 | . 12 21 23 4 . 9 Robot Miss Streak 2 | . 2 2 2 . . 2 Penetration Max . | . . . . . . . Secondary Targets 2 | . . 2 . . . . Max Gunslinging Chain 1 | . . 1 . . . . Shots Hit Robots 142 | . 18 41 70 3 . 10 Core Hits 63 | . 8 17 31 2 . 5 Critical Kills . | . . . . . . . Critical Parts Destroyed 1 | . . . 1 . . . Critical Strikes 1 | . . . 1 . . . Destroy 1 | . . . 1 . . . Melee Attacks 7 | . . . . . 7 . Impact . | . . . . . . . Slashing . | . . . . . . . Piercing 7 | . . . . . 7 . Sneak Attacks . | . . . . . . . Combat Hostiles . | . . . . . . . Follow-up Attacks . | . . . . . . . Damage Inflicted 2252 | . 268 545 1086 178 . 175 Guns 2064 | . 245 544 1086 14 . 175 Cannons . | . . . . . . . Explosions 164 | . . . . 164 . . Melee . | . . . . . . . Ramming 24 | . 23 1 . . . . Kinetic 2064 | . 245 544 1086 14 . 175 Thermal . | . . . . . . . Explosive 164 | . . . . 164 . . Electromagnetic . | . . . . . . . Impact . | . . . . . . . Slashing . | . . . . . . . Piercing . | . . . . . . . Highest Corruption 2 | . 2 2 . . . . Average Corruption 1 | . 1 2 . . . . Corruption Purged . | . . . . . . . Corruption Blocked . | . . . . . . . Effects 20 | . 7 13 . . . . Message Errors 1 | . 1 . . . . . Matter Fused 7 | . 1 6 . . . . Heat Flow Errors 3 | . 1 2 . . . . Energy Discharges 1 | . 1 . . . . . Data Loss (minor) 4 | . 2 2 . . . . Data Loss (major) 3 | . 1 2 . . . . Weapon Failures 1 | . . 1 . . . . Overload Shots . | . . . . . . . Overflow Damage . | . . . . . . . Projectiles . | . . . . . . . Explosions . | . . . . . . . Melee . | . . . . . . . Knockbacks . | . . . . . . . Impact . | . . . . . . . Kinetic . | . . . . . . . Secondary . | . . . . . . . Self-Inflicted Damage 80 | . . . 80 . . . Shots 1 | . . . 1 . . . Rammed 3 | . 2 1 . . . . Targets Rammed 3 | . 2 1 . . . . Kicked . | . . . . . . . Crushed . | . . . . . . . Highest Temperature 258 | . 247 258 20 4 . 30 Average Temperature 59 | . 72 107 4 3 . 16 Received Heat Transfer 771 | . 90 33 282 6 . 360 Siege Activations . | . . . . . . . Robots Corrupted . | . . . . . . . Combat Hostiles . | . . . . . . . Parts Fried . | . . . . . . . Impact Corruptions . | . . . . . . . Robots Melted . | . . . . . . . Combat Hostiles . | . . . . . . . Parts Melted . | . . . . . . . Heat Transferred . | . . . . . . . Parts Sabotaged . | . . . . . . . Parts Stolen . | . . . . . . . Parts Stripped . | . . . . . . . Power Chain Reactions . | . . . . . . . Alert | -11 -10 -10 -9 -9 -7 -7 ------- Run | Yrd Mat Min Mat Min Zio Dee Peak Influence 283 | . 88 85 283 131 . . Initial 66 | . . 28 16 66 . . Average 71 | . 37 18 150 129 . . Maximum Alert Level 1 | . . . 1 . . . Low Security (%) 88 | 100 100 100 64 100 . . Level 1 11 | . . . 35 . . . Level 2 . | . . . . . . . Level 3 . | . . . . . . . Level 4 . | . . . . . . . Level 5 . | . . . . . . . High Security . | . . . . . . . Max Security . | . . . . . . . Squads Dispatched 2 | . . . 2 . . . Investigation 1 | . . . 1 . . . Extermination . | . . . . . . . Reinforcement 1 | . . . 1 . . . Assault . | . . . . . . . Garrison . | . . . . . . . Intercept . | . . . . . . . Searches Triggered . | . . . . . . . Construction Impeded . | . . . . . . . Haulers Reinforced . | . . . . . . . Active Scanning Responses . | . . . . . . . Cargo Convoy Interrupts . | . . . . . . . Stealth | -11 -10 -10 -9 -9 -7 -7 --------- Run | Yrd Mat Min Mat Min Zio Dee Distress Signals 1 | . 1 . . . . . Communications Jammed . | . . . . . . . Distress Signals . | . . . . . . . Times Spotted 53 | . 6 16 26 2 . 3 Peak Tracking Total 5 | . 3 3 5 2 . 3 Tactical Retreats 4 | . 1 3 . . . . Traps | -11 -10 -10 -9 -9 -7 -7 ------- Run | Yrd Mat Min Mat Min Zio Dee Traps Triggered 5 | . 4 . 1 . . . Indirectly . | . . . . . . . Trap Hack Attempts . | . . . . . . . Triggered . | . . . . . . . Disarmed . | . . . . . . . Reprogrammed . | . . . . . . . Reused . | . . . . . . . Traps Extracted . | . . . . . . . Installed . | . . . . . . . Triggered . | . . . . . . . Machines | -11 -10 -10 -9 -9 -7 -7 ---------- Run | Yrd Mat Min Mat Min Zio Dee Machines Disabled 2 | . 1 . 1 . . . Max in Single Turn 1 | . 1 . 1 . . . Machines Repaired . | . . . . . . . Machines Dismantled . | . . . . . . . Machines Sabotaged . | . . . . . . . Overloaded Fab Kills . | . . . . . . . Hacking | -11 -10 -10 -9 -9 -7 -7 --------- Run | Yrd Mat Min Mat Min Zio Dee Machines Accessed 9 | . 5 1 3 . . . Terminals 7 | . 4 1 2 . . . Fabricators . | . . . . . . . Repair Stations . | . . . . . . . Recycling Units 2 | . 1 . 1 . . . Scanalyzers . | . . . . . . . Garrison Access . | . . . . . . . Total Hacks 29 | . 16 3 10 . . . Successful 10 | . 4 2 4 . . . Failed 19 | . 12 1 6 . . . Catastrophic 3 | . 1 . 2 . . . Database Lockouts . | . . . . . . . Manual 35 | . 14 3 6 . 12 . Terminals 22 | . 13 3 6 . . . Fabricators . | . . . . . . . Repair Stations . | . . . . . . . Recycling Units 7 | . 3 . 4 . . . Scanalyzers . | . . . . . . . Garrison Access . | . . . . . . . Terminal Hacks 7 | . 4 2 1 . . . Robot Analysis 2 | . 1 . 1 . . . Level Access Points 1 | . . 1 . . . . Branch Access Points 2 | . 1 1 . . . . Terminal Index 1 | . 1 . . . . . Hauler Manifests 1 | . 1 . . . . . Fabricator Hacks . | . . . . . . . Repair Station Hacks . | . . . . . . . Recycling Unit Hacks 1 | . . . 1 . . . Retrieve Components 1 | . . . 1 . . . Scanalyzer . | . . . . . . . Garrison Access Hacks . | . . . . . . . Unauthorized Hacks 2 | . . . 2 . . . Terminals . | . . . . . . . Fabricators . | . . . . . . . Repair Stations . | . . . . . . . Recycling Units 2 | . . . 2 . . . Reject 1 | . . . 1 . . . Mask 1 | . . . 1 . . . Scanalyzers . | . . . . . . . Garrison Access . | . . . . . . . Data Cores Recovered 2 | . . . 2 . . . Used . | . . . . . . . Hacking Detections 8 | . 4 1 3 . . . Full Trace Events 1 | . . . 1 . . . Feedback Events . | . . . . . . . Feedback Blocked . | . . . . . . . Robot Schematics Acquired . | . . . . . . . Robots Built . | . . . . . . . Authchips . | . . . . . . . Time . | . . . . . . . Total Robot Build Rating . | . . . . . . . Part Schematics Acquired . | . . . . . . . Parts Built . | . . . . . . . Authchips . | . . . . . . . Time . | . . . . . . . Total Part Build Rating . | . . . . . . . Parts Repaired . | . . . . . . . Time . | . . . . . . . Parts Recycled . | . . . . . . . Recycled Matter . | . . . . . . . Retrieved Matter . | . . . . . . . Retrieved Components . | . . . . . . . Parts Scanalyzed . | . . . . . . . Part Schematics Acquired . | . . . . . . . Parts Damaged . | . . . . . . . Bothacking | -11 -10 -10 -9 -9 -7 -7 ------------ Run | Yrd Mat Min Mat Min Zio Dee Used RIF Installer . | . . . . . . . Robots Hacked . | . . . . . . . Non-combat . | . . . . . . . Combat . | . . . . . . . Robot Hacks Applied . | . . . . . . . Relay Couplers Released . | . . . . . . . Fabnet Peak Effective % . | . . . . . . . Robots Rewired . | . . . . . . . Allies Hacked . | . . . . . . . Hacks Repelled . | . . . . . . . Allies | -11 -10 -10 -9 -9 -7 -7 -------- Run | Yrd Mat Min Mat Min Zio Dee Total Allies 6 | . . 2 . . 4 . Largest Group 4 | . . 2 . . 4 . Highest-Rated Group 156 | . . 45 . . 156 . Highest-Rated Ally 41 | . . 31 . . 41 . Total Orders . | . . . . . . . Ally Attacks 10 | . . 10 . . . . Total Damage 148 | . . 148 . . . . Kills 2 | . . 2 . . . . Allies Corrupted . | . . . . . . . Allies Melted . | . . . . . . . Intel | -11 -10 -10 -9 -9 -7 -7 ------- Run | Yrd Mat Min Mat Min Zio Dee Robot Analysis Total 2 | . 1 . 1 . . . Derelict Logs Recovered 3 | . . 1 . 1 1 . Drone Launches . | . . . . . . . Drone Recoveries . | . . . . . . . Exploration | -11 -10 -10 -9 -9 -7 -7 ------------- Run | Yrd Mat Min Mat Min Zio Dee Turns Passed 8114 | 2 797 1369 1101 225 4360 260 Spaces Moved 3768 | 2 459 744 434 91 1924 114 Core . | . . . . . . . Treads 3629 | . 322 744 434 91 1924 114 Legs 139 | 2 137 . . . . . Wheels . | . . . . . . . Hover . | . . . . . . . Flight . | . . . . . . . Fastest Speed 120 | 120 120 160 160 240 160 160 Average Speed 200 | 120 148 160 212 240 223 196 Slowest Speed 320 | 120 160 160 320 240 240 240 Overloaded Moves . | . . . . . . . Propulsion Burnouts . | . . . . . . . Robots Hopped . | . . . . . . . Cave-ins Triggered . | . . . . . . . Exploration Rate (%) 44 | 2 47 90 36 27 86 22 Regions Visited 6 Branch Regions 4 Pre-discovered Areas 1 | . . . . . 1 . Known Exits Taken 2 | . 1 1 . . . . Unknown Exits Taken 4 | 1 . . 1 1 1 . Scrap Searched 6 | . . 2 . . 4 . Spaces Dug . | . . . . . . . Terrain Destroyed 55 | . . . 39 16 . . Melee . | . . . . . . . Projectile . | . . . . . . . AOE 55 | . . . 39 16 . . Terrain Rammed . | . . . . . . . Walls Destroyed . | . . . . . . . Machines Disabled . | . . . . . . . Actions | -11 -10 -10 -9 -9 -7 -7 --------- Run | Yrd Mat Min Mat Min Zio Dee Total 4147 | 1 554 871 521 94 1970 136 Wait 188 | . 56 88 29 . 15 . Move 3762 | 1 458 743 433 90 1923 114 Hop . | . . . . . . . Pick Up 27 | . 8 6 2 1 10 . Fast Attach 10 | . 2 2 4 . . 2 Attach 6 | . . . 2 . 2 2 Detach 1 | . . . . . . 1 Swap 17 | . 6 1 4 1 3 2 Drop 26 | . 10 4 1 . 10 1 Fire 99 | . 12 26 46 2 . 13 Melee 7 | . . . . . 7 . Ram . | . . . . . . . Kick . | . . . . . . . Crush 3 | . 2 1 . . . . Escape Stasis . | . . . . . . . Rewire 1 | . . . . . . 1 Trap . | . . . . . . . Miscellaneous . | . . . . . . . Route ------- -11/Scrapyard -10/Materials (discovered 2 exits: *Mat / *Min) -10/Mines (discovered 3 exits: *Mat x2 / Exi) -9/Materials (discovered 2 exits: [*Mat] / [*Min]) -9/Mines -7/Zion -7/Deep Caves History --------- Turn | Location | Event 1 | -11/Scrapyard | Discovered new exit (range 1) 3 | -11/Scrapyard | Entered Materials 47 | -10/Materials | Discovered new exit (range 10) 144 | -10/Materials | Discovered new exit (range 16) 326 | -10/Materials | Build established: Mutant 343 | -10/Materials | Identified exit to Mines 800 | -10/Materials | Entered Mines 822 | -10/Mines | Met a Derelict bent on vengeance 847 | -10/Mines | Discovered new exit (range 6) 1027 | -10/Mines | Assembled infested the area 1506 | -10/Mines | Identified exit to Materials 2083 | -10/Mines | Identified exit to Exiles 2169 | -10/Mines | Entered Materials 2169 | -9/Materials | Evolved 2 slots: Utility x2 2763 | -9/Materials | Discovered new exit (range 3) 3239 | -9/Materials | Discovered new exit (range 12) 3270 | -9/Materials | Entered Mines 3320 | -9/Mines | Learned Materials trap positions 3348 | -9/Mines | Build established: Scavenger-Mutant 3479 | -9/Mines | A Derelict revealed a hidden shortcut to a safe place 3495 | -9/Mines | Entered Zion 4171 | -7/Zion | Learned location of Warlord (-4) 4324 | -7/Zion | Found Prototype Energy Gun 4404 | -7/Zion | Received a hallucinogenic algorithm 4533 | -7/Zion | Imprinted 4536 | -7/Zion | Declared Zion's savior 4621 | -7/Zion | Build established: Mutant 4955 | -7/Zion | Visited the Megawrench Repair Shop 4955 | -7/Zion | Megawrench repaired 6 parts 5959 | -7/Zion | Found CR-A16's Pointy Stick 6624 | -7/Zion | Learned location of 1 exit from Factory 7540 | -7/Zion | Acquired unknown access codes intercepted by a Zionite 7800 | -7/Zion | Opened final containment barrier to the Deep Caves 7845 | -7/Zion | Discovered new exit (range 3) 7845 | -7/Zion | Saw the warning signs outside the Deep Caves entrance 7855 | -7/Zion | Entered Deep Caves 7855 | -7/Deep Caves | Accompanied by 4 allies 7975 | -7/Deep Caves | Found Surveybot 24 Scanner 7979 | -7/Deep Caves | Found Surveybot 24 Chip 8074 | -7/Deep Caves | Attacked by Z-Imprinter 8081 | -7/Deep Caves | Core integrity fell below 50% 8107 | -7/Deep Caves | Z-Facility disabled 8108 | -7/Deep Caves | Core integrity fell below 20% 8115 | -7/Deep Caves | Destroyed by RY-USZ(z) with Zionite Laser-S Last Messages --------------- 07963_ Surveybot 24 is broken beyond repair. 07964_ Surveybot 24 destroyed. 07972_ Dropped Thermal Generator. 07975_ Acquired Surveybot 24 Scanner. 07979_ Acquired Surveybot 24 Chip. 08064_ NEW_ZION: Z-Facility proximity alert. 08066_ HD-GXQ(o) is busy at the terminal. Z-Imprinter: GET AWAY FROM HERE! I've worked too hard for our future just to have you ruin everything! 08077_ Destroyed Prototype Hover Unit. 08080_ Mni. Grenade Launcher destroyed. 08083_ Discarded Surveybot 24 Chip. 08088_ NM-QNV(o) is busy at the terminal. 08089_ Imp. Ion Engine destroyed. 08100_ Lgt. Treads destroyed. 08101_ Hvy. Assault Rifle destroyed. 08103_ Hrd. Medium Armor Plating destroyed. 08107_ Z-Facility disabled. 08112_ Med. Armor Plating destroyed. Map ----- +----------------------------------------------------+ | | | | | | | | | | | | | | | | | | | | | ????????????###################################### | | ???????????####################################### | | ??????????##### ###################### | | ?????????### ##################### | | ?????????## ###### ############## | | ????????## ## # ####### ## | | ???????? ? ##### # | | ??????? # | | ??????? # | | ??????? ## | | ?????? ## | | ?????? """"" """""" ## | | ?????? """""""""""""" # | | ?????? """"""""""""" | | ?????? """""""""""""" z | | ?????? """"""""""" @ | | ????? """""""""""""" z | | ?????? """"""""""""" # | | ?????? """?"?"""""""" ## | | ?????? """""""""""""" ## | | ?????? """"""""" " " ## | | ?????? """""""""o o # | | ?????? """""""" # | | ??????? """"""""" # | | ??????? """"""""" ## | | ??????? """"""""""" ## | | ???????? ?"""""""""""""o # | | ???????? """""" # | | ????????? """""" """ ## | | ????????? """""" """"" ### | | ?????????? """""" """"""" ### | | ???????????? """"? """"""" ## | | ????????????? """" """"""" # | | ??????????????"""" """"" # | | ??????????????"""" """ ## | | ???????????????""" ## | | ????????????????""""""""" ## | | ??????????????????""""" # | | ???????????????????? ? # | | ??????????????????????? | +----------------------------------------------------+ Best States ------------- Heat Dissipation 28 Energy Generation 12 Energy Capacity 265 Matter Stores 300 Matter Capacity 300 Sight Range 16 Robot Scan Range 14 Terrain Scan Range 24 Terrain Scan Density 2010 Armor Coverage 450 Resistance: KI 20 Resistance: TH 20 Resistance: EX 20 Resistance: EM 20 Resistance: I 20 Resistance: S 20 Resistance: P 20 Core Shielding 20 Evasion (%) 55 Targeting Accuracy 8 Recoil Reduction 2 Offensive Hacking 10 Authchip Count 2 Item Schematics ----------------- None Robot Schematics ------------------ None Fabricated ------------ Nothing Alien Tech Used ----------------- None Achievements -------------- Adventurer Signs Are For Wimps Challenges ------------ None Game ------ Seed ExperimentalHeartMount Manual? 0 Play Time 00:45:11 Cumulative 31.4 hours Start 2024.05.21 @ 09:38:29 End 2024.05.21 @ 10:22:58 Sessions 1 Manual Loads 0 Difficulty Adventurer Special Mode None Game No. 41 Rogue 0 Adventurer 36 Explorer 5 Win Type - Total 1 Types 1/0/0/0/0/0/0/0/0 Lore% 24 Gallery% 35 Achievement% 30 Wizard Run 0 Options --------- Layout 1 ASCII 0 Keyboard 0 Movement Arrows Keybinds 0 Fullscreen 2 Font 24/Terminus Map View 50x35 Zoom Use 0% Tactical HUD 1 Map Filters NONE Filters NONE Steam 1 RUN: a5750307-7417-42cb-b2a4-c863bc793a94